[Event "Live Chess"]
[Site "Chess.com"]
[Date "2011.01.12"]
[Round "-"]
[White "hipposcottimus"]
[Black "rrcmm"]
[Result "1-0"]
[CurrentPosition "8/7r/8/R7/7P/Pk3PK1/8/8 b - -"]
[Timezone "UTC"]
[ECO "A06"]
[ECOUrl "https://www.chess.com/openings/Reti-Opening-Tennison-Gambit"]
[UTCDate "2011.01.12"]
[UTCTime "23:05:46"]
[WhiteElo "1332"]
[BlackElo "1334"]
[TimeControl "480"]
[Termination "hipposcottimus won on time"]
[StartTime "23:05:46"]
[EndDate "2011.01.12"]
[EndTime "23:22:11"]
[Link "https://www.chess.com/game/live/86958180"]

1. e4 {[%clk 0:08:00]} 1... d5 {[%clk 0:08:00]} 2. Nf3 {[%clk 0:07:59.7]} 2... dxe4 {[%clk 0:07:58.4]} 3. Ng5 {[%clk 0:07:58.2]} 3... Nf6 {[%clk 0:07:50.1]} 4. d3 {[%clk 0:07:56]} 4... h6 {[%clk 0:07:49.3]} 5. Nxe4 {[%clk 0:07:43.6]} 5... Nxe4 {[%clk 0:07:47.4]} 6. dxe4 {[%clk 0:07:43.3]} 6... Qxd1+ {[%clk 0:07:45.6]} 7. Kxd1 {[%clk 0:07:43.1]} 7... e6 {[%clk 0:07:31.9]} 8. Nc3 {[%clk 0:07:32.7]} 8... Bd7 {[%clk 0:07:30.2]} 9. Bd3 {[%clk 0:07:31.5]} 9... a6 {[%clk 0:07:28.6]} 10. f3 {[%clk 0:07:30.6]} 10... c6 {[%clk 0:07:27.8]} 11. Bd2 {[%clk 0:07:30.2]} 11... b5 {[%clk 0:07:26.9]} 12. Ke2 {[%clk 0:07:29.8]} 12... a5 {[%clk 0:07:24.9]} 13. a3 {[%clk 0:07:25.6]} 13... Bc5 {[%clk 0:07:22.4]} 14. b4 {[%clk 0:07:18.9]} 14... Bb6 {[%clk 0:07:14.1]} 15. Rhb1 {[%clk 0:07:04]} 15... a4 {[%clk 0:07:09.8]} 16. Nd1 {[%clk 0:07:02.1]} 16... O-O {[%clk 0:07:09]} 17. Be3 {[%clk 0:07:01.2]} 17... Bxe3 {[%clk 0:07:02.4]} 18. Nxe3 {[%clk 0:07:00.9]} 18... Na6 {[%clk 0:07:01.6]} 19. Kf1 {[%clk 0:06:57.8]} 19... Nc7 {[%clk 0:07:00.8]} 20. c4 {[%clk 0:06:50.6]} 20... Ne8 {[%clk 0:06:52.2]} 21. cxb5 {[%clk 0:06:49.1]} 21... cxb5 {[%clk 0:06:50.1]} 22. e5 {[%clk 0:06:48]} 22... f6 {[%clk 0:06:46.9]} 23. Kg1 {[%clk 0:06:37.2]} 23... fxe5 {[%clk 0:06:38.7]} 24. Ng4 {[%clk 0:06:36.8]} 24... e4 {[%clk 0:06:20]} 25. Bxe4 {[%clk 0:06:32.6]} 25... Rd8 {[%clk 0:06:13]} 26. Rd1 {[%clk 0:06:25]} 26... Nf6 {[%clk 0:05:55.3]} 27. Nxf6+ {[%clk 0:06:20.2]} 27... gxf6 {[%clk 0:05:50.4]} 28. Bd3 {[%clk 0:06:00.7]} 28... Bc6 {[%clk 0:05:27.5]} 29. Rd2 {[%clk 0:05:28.5]} 29... Rb8 {[%clk 0:05:16.1]} 30. Re1 {[%clk 0:05:21.7]} 30... e5 {[%clk 0:05:11.2]} 31. Bf5 {[%clk 0:04:55.6]} 31... Rfd8 {[%clk 0:04:52.2]} 32. Rc2 {[%clk 0:04:33.5]} 32... Rd6 {[%clk 0:04:39.9]} 33. Be4 {[%clk 0:04:25.5]} 33... Bxe4 {[%clk 0:04:33.4]} 34. Rxe4 {[%clk 0:04:21.1]} 34... Rd1+ {[%clk 0:04:27.9]} 35. Kf2 {[%clk 0:04:18.7]} 35... Ra1 {[%clk 0:04:25.5]} 36. Rc3 {[%clk 0:04:11.4]} 36... Rd8 {[%clk 0:04:23.9]} 37. Kg3 {[%clk 0:04:08.7]} 37... Kg7 {[%clk 0:04:06.2]} 38. f4 {[%clk 0:03:43.4]} 38... exf4+ {[%clk 0:03:46.4]} 39. Rxf4 {[%clk 0:03:40.9]} 39... Rad1 {[%clk 0:03:33.1]} 40. Rff3 {[%clk 0:02:58.2]} 40... R8d5 {[%clk 0:03:20.8]} 41. Rc7+ {[%clk 0:02:50.2]} 41... Rd7 {[%clk 0:03:16.7]} 42. Rcc3 {[%clk 0:02:46.4]} 42... Kg6 {[%clk 0:03:05.1]} 43. h3 {[%clk 0:02:31.8]} 43... h5 {[%clk 0:03:04.2]} 44. Kh2 {[%clk 0:02:29.3]} 44... R7d5 {[%clk 0:02:46.3]} 45. Rc6 {[%clk 0:02:24]} 45... Rd6 {[%clk 0:02:42.3]} 46. Rg3+ {[%clk 0:02:11.8]} 46... Kh6 {[%clk 0:02:31.6]} 47. Rc5 {[%clk 0:02:04.4]} 47... R1d5 {[%clk 0:02:23.8]} 48. Rc8 {[%clk 0:02:01.8]} 48... Rd8 {[%clk 0:02:17.2]} 49. Rc6 {[%clk 0:01:38.4]} 49... R5d6 {[%clk 0:02:04.5]} 50. Rcc3 {[%clk 0:01:36.9]} 50... Rf8 {[%clk 0:01:48.7]} 51. Rc5 {[%clk 0:01:32]} 51... f5 {[%clk 0:01:43.6]} 52. Rxb5 {[%clk 0:01:29.9]} 52... f4 {[%clk 0:01:33.7]} 53. Rgg5 {[%clk 0:01:25.7]} 53... Rff6 {[%clk 0:01:09]} 54. Rxh5+ {[%clk 0:01:24.6]} 54... Kg7 {[%clk 0:01:07.3]} 55. Rbg5+ {[%clk 0:01:21.6]} 55... Kf7 {[%clk 0:01:05.2]} 56. Rh7+ {[%clk 0:01:20.2]} 56... Ke6 {[%clk 0:01:01.5]} 57. b5 {[%clk 0:01:16.4]} 57... Rb6 {[%clk 0:00:56.9]} 58. Rhh5 {[%clk 0:01:11.5]} 58... Kf7 {[%clk 0:00:50.9]} 59. Rh7+ {[%clk 0:01:08.9]} 59... Ke6 {[%clk 0:00:49.3]} 60. Rc5 {[%clk 0:01:00.6]} 60... f3 {[%clk 0:00:44.4]} 61. gxf3 {[%clk 0:00:44.5]} 61... Rd6 {[%clk 0:00:40.9]} 62. Kg2 {[%clk 0:00:41.7]} 62... Rd2+ {[%clk 0:00:37.5]} 63. Kg3 {[%clk 0:00:39.6]} 63... Rg6+ {[%clk 0:00:36.1]} 64. Kh4 {[%clk 0:00:36.4]} 64... Rd6 {[%clk 0:00:31.1]} 65. Rc6 {[%clk 0:00:34.4]} 65... Rxc6 {[%clk 0:00:25.8]} 66. bxc6 {[%clk 0:00:33.7]} 66... Rg8 {[%clk 0:00:23]} 67. Ra7 {[%clk 0:00:30.5]} 67... Rc8 {[%clk 0:00:20]} 68. c7 {[%clk 0:00:28.6]} 68... Kd6 {[%clk 0:00:14.9]} 69. Rxa4 {[%clk 0:00:27.9]} 69... Rxc7 {[%clk 0:00:11.1]} 70. Kg3 {[%clk 0:00:25.3]} 70... Rg7+ {[%clk 0:00:08.5]} 71. Kf2 {[%clk 0:00:24.2]} 71... Kc5 {[%clk 0:00:07.3]} 72. h4 {[%clk 0:00:20.7]} 72... Rh7 {[%clk 0:00:05.8]} 73. Rg4 {[%clk 0:00:16.6]} 73... Kd5 {[%clk 0:00:03.7]} 74. Rg5+ {[%clk 0:00:16]} 74... Kc4 {[%clk 0:00:02.2]} 75. Kg3 {[%clk 0:00:15.3]} 75... Kb3 {[%clk 0:00:01.2]} 76. Ra5 {[%clk 0:00:12.5]} 1-0

[Event "Live Chess"]
[Site "Chess.com"]
[Date "2011.01.12"]
[Round "-"]
[White "spicmick"]
[Black "hipposcottimus"]
[Result "0-1"]
[CurrentPosition "7R/ppk3P1/3br3/3rp3/8/8/PP5P/5RK1 b - -"]
[Timezone "UTC"]
[ECO "C50"]
[ECOUrl "https://www.chess.com/openings/Giuoco-Piano-Game-Four-Knights-Game"]
[UTCDate "2011.01.12"]
[UTCTime "22:53:41"]
[WhiteElo "1421"]
[BlackElo "1324"]
[TimeControl "240+10"]
[Termination "hipposcottimus won by resignation"]
[StartTime "22:53:41"]
[EndDate "2011.01.12"]
[EndTime "23:03:36"]
[Link "https://www.chess.com/game/live/86955223"]

1. e4 {[%clk 0:04:00]} 1... e5 {[%clk 0:04:00]} 2. Nf3 {[%clk 0:04:07.8]} 2... Nc6 {[%clk 0:04:07.9]} 3. Nc3 {[%clk 0:04:15]} 3... Nf6 {[%clk 0:04:16.2]} 4. Bc4 {[%clk 0:04:15.2]} 4... Bc5 {[%clk 0:04:20.6]} 5. Bxf7+ {[%clk 0:03:56]} 5... Kxf7 {[%clk 0:04:21.4]} 6. Ng5+ {[%clk 0:04:03]} 6... Ke8 {[%clk 0:04:31.1]} 7. O-O {[%clk 0:03:58.5]} 7... d5 {[%clk 0:04:28.6]} 8. Qf3 {[%clk 0:03:27.6]} 8... Bg4 {[%clk 0:04:31.9]} 9. Qg3 {[%clk 0:03:34.9]} 9... Bb4 {[%clk 0:04:20.4]} 10. Nxd5 {[%clk 0:03:39.2]} 10... Nxd5 {[%clk 0:04:12.3]} 11. Qxg4 {[%clk 0:03:37.8]} 11... Nf6 {[%clk 0:04:18.2]} 12. Qe6+ {[%clk 0:03:39.3]} 12... Qe7 {[%clk 0:04:23.4]} 13. c3 {[%clk 0:03:46.5]} 13... Bd6 {[%clk 0:04:17.9]} 14. d4 {[%clk 0:03:09.9]} 14... Qxe6 {[%clk 0:04:20.3]} 15. Nxe6 {[%clk 0:03:16.8]} 15... Kf7 {[%clk 0:04:24.3]} 16. d5 {[%clk 0:03:22.7]} 16... Nd8 {[%clk 0:04:26.4]} 17. Ng5+ {[%clk 0:03:26.7]} 17... Ke7 {[%clk 0:04:33]} 18. f4 {[%clk 0:03:34]} 18... Re8 {[%clk 0:04:40.7]} 19. f5 {[%clk 0:03:19.4]} 19... c6 {[%clk 0:04:47.2]} 20. c4 {[%clk 0:03:26.3]} 20... cxd5 {[%clk 0:04:56.2]} 21. cxd5 {[%clk 0:03:34.8]} 21... h6 {[%clk 0:05:03]} 22. Ne6 {[%clk 0:03:40.8]} 22... Nxe6 {[%clk 0:05:07.9]} 23. fxe6 {[%clk 0:03:38.7]} 23... Nxe4 {[%clk 0:05:17.1]} 24. Rf7+ {[%clk 0:03:43.8]} 24... Kd8 {[%clk 0:05:19.6]} 25. Be3 {[%clk 0:03:34.3]} 25... Re7 {[%clk 0:05:15.2]} 26. Raf1 {[%clk 0:03:25.8]} 26... Nf6 {[%clk 0:05:19.9]} 27. Bxh6 {[%clk 0:03:28.1]} 27... gxh6 {[%clk 0:05:22]} 28. R7xf6 {[%clk 0:03:22.4]} 28... Rc8 {[%clk 0:05:23.9]} 29. Rxh6 {[%clk 0:03:28.3]} 29... Rc2 {[%clk 0:05:32.5]} 30. Rh8+ {[%clk 0:03:32.4]} 30... Kc7 {[%clk 0:05:39.7]} 31. g4 {[%clk 0:03:26.6]} 31... Rd2 {[%clk 0:05:38.3]} 32. g5 {[%clk 0:03:32.5]} 32... Rxd5 {[%clk 0:05:43.9]} 33. g6 {[%clk 0:03:39.8]} 33... Rxe6 {[%clk 0:05:46.8]} 34. g7 {[%clk 0:03:45.8]} 0-1

[Event "Live Chess"]
[Site "Chess.com"]
[Date "2011.01.12"]
[Round "-"]
[White "dennis-inactive"]
[Black "hipposcottimus"]
[Result "0-1"]
[CurrentPosition "1r4k1/p1p3pp/4r3/4N3/5n2/3P4/PPPQ1PqP/4R2K w - -"]
[Timezone "UTC"]
[ECO "C57"]
[ECOUrl "https://www.chess.com/openings/Italian-Game-Knight-Attack-Polerio-Defense"]
[UTCDate "2011.01.12"]
[UTCTime "22:45:25"]
[WhiteElo "1245"]
[BlackElo "1324"]
[TimeControl "720"]
[Termination "hipposcottimus won by checkmate"]
[StartTime "22:45:25"]
[EndDate "2011.01.12"]
[EndTime "22:52:17"]
[Link "https://www.chess.com/game/live/86953198"]

1. e4 {[%clk 0:12:00]} 1... e5 {[%clk 0:12:00]} 2. Nf3 {[%clk 0:11:58.7]} 2... Nc6 {[%clk 0:11:59.7]} 3. Bc4 {[%clk 0:11:57.9]} 3... Nf6 {[%clk 0:11:59.5]} 4. Ng5 {[%clk 0:11:55.5]} 4... d5 {[%clk 0:11:59.2]} 5. exd5 {[%clk 0:11:53]} 5... Na5 {[%clk 0:11:58.9]} 6. Na3 {[%clk 0:11:41.4]} 6... Nxc4 {[%clk 0:11:57.1]} 7. Nxc4 {[%clk 0:11:39.1]} 7... Nxd5 {[%clk 0:11:55.9]} 8. d3 {[%clk 0:11:34.3]} 8... Be7 {[%clk 0:11:54]} 9. Nxf7 {[%clk 0:11:31.8]} 9... Kxf7 {[%clk 0:11:49]} 10. Qf3+ {[%clk 0:11:28]} 10... Bf6 {[%clk 0:11:42.3]} 11. Bg5 {[%clk 0:11:24.7]} 11... Re8 {[%clk 0:11:39.1]} 12. Bxf6 {[%clk 0:11:19.6]} 12... Nxf6 {[%clk 0:11:38.8]} 13. O-O {[%clk 0:11:12.4]} 13... Kg8 {[%clk 0:11:36.2]} 14. Rae1 {[%clk 0:11:07.6]} 14... Bg4 {[%clk 0:11:32.8]} 15. Qxb7 {[%clk 0:10:58.2]} 15... Re6 {[%clk 0:11:04.7]} 16. Qb3 {[%clk 0:10:50.9]} 16... Rb8 {[%clk 0:10:02.7]} 17. Qc3 {[%clk 0:10:40.5]} 17... Nd5 {[%clk 0:09:54.2]} 18. Qd2 {[%clk 0:10:16]} 18... Nf4 {[%clk 0:09:33.4]} 19. Nxe5 {[%clk 0:09:59.2]} 19... Qg5 {[%clk 0:09:26]} 20. Kh1 {[%clk 0:09:17.8]} 20... Bh3 {[%clk 0:09:12.2]} 21. Rg1 {[%clk 0:09:03.5]} 21... Bxg2+ {[%clk 0:08:59.6]} 22. Rxg2 {[%clk 0:08:26]} 22... Qxg2# {[%clk 0:08:53.6]} 0-1

[Event "Live Chess"]
[Site "Chess.com"]
[Date "2011.01.12"]
[Round "-"]
[White "hipposcottimus"]
[Black "lwkipe"]
[Result "0-1"]
[CurrentPosition "r1k4r/2p1b2p/1p4p1/p1n1p3/2b1P3/2B5/PPB3PP/2KR1R1N w - -"]
[Timezone "UTC"]
[ECO "C41"]
[ECOUrl "https://www.chess.com/openings/Philidor-Defense"]
[UTCDate "2011.01.12"]
[UTCTime "19:48:01"]
[WhiteElo "1318"]
[BlackElo "1414"]
[TimeControl "600+2"]
[Termination "lwkipe won by resignation"]
[StartTime "19:48:01"]
[EndDate "2011.01.12"]
[EndTime "19:55:37"]
[Link "https://www.chess.com/game/live/86902057"]

1. e4 {[%clk 0:10:00]} 1... e5 {[%clk 0:10:00]} 2. Nf3 {[%clk 0:09:56.7]} 2... d6 {[%clk 0:09:55.3]} 3. c4 {[%clk 0:09:52]} 3... b6 {[%clk 0:09:44.1]} 4. d4 {[%clk 0:09:43.7]} 4... Nd7 {[%clk 0:09:34]} 5. dxe5 {[%clk 0:09:32.8]} 5... Nxe5 {[%clk 0:09:31.5]} 6. Nxe5 {[%clk 0:09:32.7]} 6... dxe5 {[%clk 0:09:29.8]} 7. Qxd8+ {[%clk 0:09:32.5]} 7... Kxd8 {[%clk 0:09:27.6]} 8. Nc3 {[%clk 0:09:33.9]} 8... Bb4 {[%clk 0:09:21.3]} 9. Bd2 {[%clk 0:09:32.7]} 9... Be6 {[%clk 0:09:14.2]} 10. O-O-O {[%clk 0:09:31.1]} 10... Kc8 {[%clk 0:09:07]} 11. Ne2 {[%clk 0:08:21.7]} 11... a5 {[%clk 0:08:55.2]} 12. f4 {[%clk 0:08:18.1]} 12... f6 {[%clk 0:08:50.3]} 13. fxe5 {[%clk 0:08:17.4]} 13... fxe5 {[%clk 0:08:48.2]} 14. Ng3 {[%clk 0:08:00.6]} 14... g6 {[%clk 0:08:38.5]} 15. Bd3 {[%clk 0:07:56.3]} 15... Nf6 {[%clk 0:08:30.1]} 16. Rhf1 {[%clk 0:07:55.5]} 16... Be7 {[%clk 0:08:00]} 17. Bc3 {[%clk 0:07:48]} 17... Nd7 {[%clk 0:07:39.6]} 18. Nh1 {[%clk 0:06:35.2]} 18... Nc5 {[%clk 0:07:32.3]} 19. Bc2 {[%clk 0:06:33.4]} 19... Bxc4 {[%clk 0:07:16.9]} 0-1

[Event "Live Chess"]
[Site "Chess.com"]
[Date "2011.01.12"]
[Round "-"]
[White "hipposcottimus"]
[Black "agame2540"]
[Result "0-1"]
[CurrentPosition "2k1r3/ppp5/8/7R/P1rn2P1/4pK2/4R2P/8 w - -"]
[Timezone "UTC"]
[ECO "B02"]
[ECOUrl "https://www.chess.com/openings/Alekhines-Defense-Brooklyn-Variation-3.d4-d6"]
[UTCDate "2011.01.12"]
[UTCTime "19:25:53"]
[WhiteElo "1324"]
[BlackElo "1213"]
[TimeControl "600"]
[Termination "agame2540 won on time"]
[StartTime "19:25:53"]
[EndDate "2011.01.12"]
[EndTime "19:36:01"]
[Link "https://www.chess.com/game/live/86893671"]

1. e4 {[%clk 0:10:00]} 1... Nf6 {[%clk 0:10:00]} 2. e5 {[%clk 0:09:57.4]} 2... Ng8 {[%clk 0:09:55.2]} 3. d4 {[%clk 0:09:40.5]} 3... d6 {[%clk 0:09:41.9]} 4. f4 {[%clk 0:09:30.9]} 4... dxe5 {[%clk 0:09:26.5]} 5. fxe5 {[%clk 0:09:25.9]} 5... Bd7 {[%clk 0:09:11.9]} 6. Nf3 {[%clk 0:09:24.6]} 6... Nc6 {[%clk 0:08:59.4]} 7. c4 {[%clk 0:09:15.9]} 7... Bg4 {[%clk 0:08:46.6]} 8. Be3 {[%clk 0:09:07.7]} 8... Bxf3 {[%clk 0:08:34.4]} 9. Qxf3 {[%clk 0:09:06.1]} 9... Nxd4 {[%clk 0:08:21]} 10. Bxd4 {[%clk 0:08:56.1]} 10... Qxd4 {[%clk 0:08:10.2]} 11. Qe2 {[%clk 0:08:55.8]} 11... e6 {[%clk 0:07:59.9]} 12. Nc3 {[%clk 0:08:54.6]} 12... Bb4 {[%clk 0:07:46.9]} 13. Qd3 {[%clk 0:08:50.5]} 13... O-O-O {[%clk 0:07:32.1]} 14. Qxd4 {[%clk 0:08:46.1]} 14... Rxd4 {[%clk 0:07:22.5]} 15. Be2 {[%clk 0:08:44.6]} 15... Bxc3+ {[%clk 0:07:12.7]} 16. bxc3 {[%clk 0:08:41.5]} 16... Re4 {[%clk 0:07:03.2]} 17. O-O {[%clk 0:08:41.1]} 17... Rxe2 {[%clk 0:06:52.7]} 18. Rxf7 {[%clk 0:08:40]} 18... Nh6 {[%clk 0:06:18.4]} 19. Rxg7 {[%clk 0:08:34.3]} 19... Rxe5 {[%clk 0:06:12.5]} 20. a4 {[%clk 0:08:26.6]} 20... Re3 {[%clk 0:06:06.8]} 21. Re7 {[%clk 0:08:17.2]} 21... Nf5 {[%clk 0:06:01]} 22. Rf7 {[%clk 0:07:47.1]} 22... Rxc3 {[%clk 0:05:52.7]} 23. Re1 {[%clk 0:07:39]} 23... Re8 {[%clk 0:05:28]} 24. Rxh7 {[%clk 0:07:16]} 24... e5 {[%clk 0:05:24]} 25. Rh5 {[%clk 0:07:12.4]} 25... Ne3 {[%clk 0:04:53.1]} 26. Kf2 {[%clk 0:07:03.3]} 26... Ng4+ {[%clk 0:04:44.5]} 27. Kg1 {[%clk 0:06:51.3]} 27... Ne3 {[%clk 0:04:22.3]} 28. Kf2 {[%clk 0:06:46.4]} 28... Nc2 {[%clk 0:04:15.6]} 29. Re2 {[%clk 0:06:36.1]} 29... Rxc4 {[%clk 0:04:05.4]} 30. g3 {[%clk 0:06:22.4]} 30... e4 {[%clk 0:03:56.3]} 31. g4 {[%clk 0:06:18.8]} 31... e3+ {[%clk 0:03:55]} 32. Kf3 {[%clk 0:06:17.1]} 32... Nd4+ {[%clk 0:03:51.6]} 0-1

[Event "Live Chess"]
[Site "Chess.com"]
[Date "2011.01.12"]
[Round "-"]
[White "king_amulet"]
[Black "hipposcottimus"]
[Result "0-1"]
[CurrentPosition "3k4/5RR1/6p1/5p2/4pP2/4P1P1/1r5P/2r2K2 w - -"]
[Timezone "UTC"]
[ECO "A10"]
[ECOUrl "https://www.chess.com/openings/English-Opening-1...b6-2.d4"]
[UTCDate "2011.01.12"]
[UTCTime "18:07:36"]
[WhiteElo "1462"]
[BlackElo "1334"]
[TimeControl "120+12"]
[Termination "hipposcottimus won by checkmate"]
[StartTime "18:07:36"]
[EndDate "2011.01.12"]
[EndTime "18:17:52"]
[Link "https://www.chess.com/game/live/86872918"]

1. c4 {[%clk 0:02:00]} 1... b6 {[%clk 0:02:00]} 2. d4 {[%clk 0:02:10.4]} 2... d5 {[%clk 0:02:09.8]} 3. cxd5 {[%clk 0:02:18.6]} 3... Nf6 {[%clk 0:02:18.2]} 4. Nc3 {[%clk 0:02:22.7]} 4... Nxd5 {[%clk 0:02:23.6]} 5. Nxd5 {[%clk 0:02:32.8]} 5... Qxd5 {[%clk 0:02:34.5]} 6. Nf3 {[%clk 0:02:41.5]} 6... Bb7 {[%clk 0:02:39.6]} 7. Qd3 {[%clk 0:02:52]} 7... f5 {[%clk 0:02:40]} 8. e3 {[%clk 0:02:58.9]} 8... Ba6 {[%clk 0:02:35.3]} 9. Qb3 {[%clk 0:02:53.5]} 9... Qxb3 {[%clk 0:02:41.9]} 10. axb3 {[%clk 0:03:04.6]} 10... Bxf1 {[%clk 0:02:52.9]} 11. Rxf1 {[%clk 0:03:15.8]} 11... e6 {[%clk 0:03:04.2]} 12. Bd2 {[%clk 0:03:26.6]} 12... c5 {[%clk 0:03:05.6]} 13. Ne5 {[%clk 0:03:36.8]} 13... Bd6 {[%clk 0:03:11.7]} 14. Bc3 {[%clk 0:03:45.2]} 14... O-O {[%clk 0:03:21]} 15. b4 {[%clk 0:03:45.9]} 15... cxd4 {[%clk 0:03:30.3]} 16. Bxd4 {[%clk 0:03:57]} 16... Bxb4+ {[%clk 0:03:39.6]} 17. Ke2 {[%clk 0:04:07]} 17... a5 {[%clk 0:03:42.6]} 18. Bxb6 {[%clk 0:04:17.2]} 18... Ra6 {[%clk 0:03:46.7]} 19. Bc7 {[%clk 0:04:24.1]} 19... Nc6 {[%clk 0:03:48.8]} 20. Nd3 {[%clk 0:04:24.5]} 20... Rc8 {[%clk 0:03:51.6]} 21. Nxb4 {[%clk 0:04:34.5]} 21... Nxb4 {[%clk 0:03:57.5]} 22. Bxa5 {[%clk 0:04:45.2]} 22... Nc6 {[%clk 0:04:04.7]} 23. Bc3 {[%clk 0:04:54]} 23... Rb6 {[%clk 0:04:03.9]} 24. g3 {[%clk 0:04:57.4]} 24... e5 {[%clk 0:04:12.6]} 25. f4 {[%clk 0:05:07.7]} 25... e4 {[%clk 0:04:21.2]} 26. Rfd1 {[%clk 0:05:17]} 26... Nb4 {[%clk 0:04:14.7]} 27. Rd7 {[%clk 0:05:21.4]} 27... g6 {[%clk 0:03:48.6]} 28. Raa7 {[%clk 0:05:22.2]} 28... Nd5 {[%clk 0:02:56.4]} 29. Rg7+ {[%clk 0:05:31.7]} 29... Kf8 {[%clk 0:03:02.5]} 30. Rxh7 {[%clk 0:05:29.1]} 30... Nxc3+ {[%clk 0:03:12]} 31. bxc3 {[%clk 0:05:37.3]} 31... Kg8 {[%clk 0:02:49.7]} 32. Rag7+ {[%clk 0:05:45.6]} 32... Kf8 {[%clk 0:02:59.7]} 33. Rf7+ {[%clk 0:05:55.4]} 33... Ke8 {[%clk 0:03:07.6]} 34. Re7+ {[%clk 0:06:03.6]} 34... Kf8 {[%clk 0:03:08.4]} 35. Ref7+ {[%clk 0:06:08.1]} 35... Ke8 {[%clk 0:03:17.4]} 36. Re7+ {[%clk 0:06:17.6]} 36... Kf8 {[%clk 0:03:26.3]} 37. Rhf7+ {[%clk 0:06:27.6]} 37... Kg8 {[%clk 0:03:33.5]} 38. Rg7+ {[%clk 0:06:38.6]} 38... Kh8 {[%clk 0:03:37.6]} 39. Rh7+ {[%clk 0:06:49.6]} 39... Kg8 {[%clk 0:03:48.2]} 40. Rd7 {[%clk 0:06:51.3]} 40... Rb2+ {[%clk 0:03:47.9]} 41. Kf1 {[%clk 0:07:01.5]} 41... Rxc3 {[%clk 0:03:57]} 42. Rhg7+ {[%clk 0:07:11.4]} 42... Kf8 {[%clk 0:04:04.6]} 43. Rdf7+ {[%clk 0:07:19.9]} 43... Ke8 {[%clk 0:04:14.7]} 44. Re7+ {[%clk 0:07:31]} 44... Kd8 {[%clk 0:04:24.2]} 45. Ref7 {[%clk 0:07:35.8]} 45... Rc1# {[%clk 0:04:31.5]} 0-1

[Event "Live Chess"]
[Site "Chess.com"]
[Date "2011.01.12"]
[Round "-"]
[White "hipposcottimus"]
[Black "joaolima39"]
[Result "1-0"]
[CurrentPosition "1rnq1k2/2p1bp2/p1Bp3B/3N4/4P3/5P2/PPP2P1P/2K3R1 b - -"]
[Timezone "UTC"]
[ECO "C41"]
[ECOUrl "https://www.chess.com/openings/Philidor-Defense-3.Bc4"]
[UTCDate "2011.01.12"]
[UTCTime "17:50:10"]
[WhiteElo "1334"]
[BlackElo "1106"]
[TimeControl "300"]
[Termination "hipposcottimus won by checkmate"]
[StartTime "17:50:10"]
[EndDate "2011.01.12"]
[EndTime "17:58:00"]
[Link "https://www.chess.com/game/live/86868131"]

1. e4 {[%clk 0:05:00]} 1... e5 {[%clk 0:05:00]} 2. Nf3 {[%clk 0:04:56.4]} 2... d6 {[%clk 0:04:58.3]} 3. Bc4 {[%clk 0:04:45.9]} 3... h6 {[%clk 0:04:56.2]} 4. d4 {[%clk 0:04:43.1]} 4... Bg4 {[%clk 0:04:52.7]} 5. Qd3 {[%clk 0:04:40.2]} 5... Nf6 {[%clk 0:04:47.6]} 6. dxe5 {[%clk 0:04:34.9]} 6... Bxf3 {[%clk 0:04:43]} 7. gxf3 {[%clk 0:04:22.7]} 7... Nh5 {[%clk 0:04:23.5]} 8. Nc3 {[%clk 0:04:15.3]} 8... Nd7 {[%clk 0:04:08.3]} 9. Qd5 {[%clk 0:03:55.4]} 9... Nxe5 {[%clk 0:03:54.4]} 10. Be2 {[%clk 0:03:16.4]} 10... Nf4 {[%clk 0:03:48.6]} 11. Bxf4 {[%clk 0:03:10.7]} 11... Qf6 {[%clk 0:03:36.8]} 12. Qxb7 {[%clk 0:03:03.1]} 12... Qd8 {[%clk 0:03:27.7]} 13. O-O-O {[%clk 0:02:55.3]} 13... Nd7 {[%clk 0:03:20.1]} 14. Qd5 {[%clk 0:02:29.3]} 14... Be7 {[%clk 0:03:16.6]} 15. Rhg1 {[%clk 0:02:16.7]} 15... Nb6 {[%clk 0:02:52.1]} 16. Bb5+ {[%clk 0:02:00]} 16... Kf8 {[%clk 0:02:32.1]} 17. Qh5 {[%clk 0:01:42.9]} 17... a6 {[%clk 0:02:20.5]} 18. Bc6 {[%clk 0:01:36.3]} 18... Rb8 {[%clk 0:02:15.4]} 19. Nd5 {[%clk 0:01:28.2]} 19... Nc8 {[%clk 0:01:50.4]} 20. Rxg7 {[%clk 0:01:00.9]} 20... Kxg7 {[%clk 0:01:44.3]} 21. Rg1+ {[%clk 0:00:57.1]} 21... Kf8 {[%clk 0:01:38]} 22. Qxh6+ {[%clk 0:00:50.3]} 22... Rxh6 {[%clk 0:01:32.3]} 23. Bxh6# {[%clk 0:00:49.2]} 1-0

[Event "Live Chess"]
[Site "Chess.com"]
[Date "2011.01.12"]
[Round "-"]
[White "joaolima39"]
[Black "hipposcottimus"]
[Result "0-1"]
[CurrentPosition "r3k2r/pp3ppp/8/4n3/2P1P3/1nqPK3/P4PPP/3B3R w kq -"]
[Timezone "UTC"]
[ECO "C20"]
[ECOUrl "https://www.chess.com/openings/Kings-Pawn-Opening-The-Whale-Variation"]
[UTCDate "2011.01.12"]
[UTCTime "17:44:51"]
[WhiteElo "1106"]
[BlackElo "1334"]
[TimeControl "300"]
[Termination "hipposcottimus won by resignation"]
[StartTime "17:44:51"]
[EndDate "2011.01.12"]
[EndTime "17:49:36"]
[Link "https://www.chess.com/game/live/86866468"]

1. e4 {[%clk 0:05:00]} 1... e5 {[%clk 0:05:00]} 2. c4 {[%clk 0:04:56.7]} 2... Nf6 {[%clk 0:04:53.6]} 3. Nc3 {[%clk 0:04:52.2]} 3... Bb4 {[%clk 0:04:49.4]} 4. d3 {[%clk 0:04:41.4]} 4... c6 {[%clk 0:04:42.9]} 5. Nf3 {[%clk 0:04:37.4]} 5... d5 {[%clk 0:04:39.5]} 6. cxd5 {[%clk 0:04:28.6]} 6... cxd5 {[%clk 0:04:36.2]} 7. Nxe5 {[%clk 0:04:18.1]} 7... d4 {[%clk 0:04:33.5]} 8. Bd2 {[%clk 0:04:13.3]} 8... dxc3 {[%clk 0:04:31.1]} 9. Bxc3 {[%clk 0:03:57.2]} 9... Nc6 {[%clk 0:04:15.2]} 10. Qa4 {[%clk 0:03:45.6]} 10... Bd7 {[%clk 0:03:55.9]} 11. Nxd7 {[%clk 0:03:34]} 11... Bxc3+ {[%clk 0:03:35.6]} 12. bxc3 {[%clk 0:03:17.9]} 12... Nxd7 {[%clk 0:03:34.4]} 13. Be2 {[%clk 0:03:06.4]} 13... Qf6 {[%clk 0:03:30]} 14. c4 {[%clk 0:02:55.9]} 14... Qxa1+ {[%clk 0:03:24.6]} 15. Bd1 {[%clk 0:02:49]} 15... Qc3+ {[%clk 0:03:15]} 16. Ke2 {[%clk 0:02:43.7]} 16... Nde5 {[%clk 0:03:05.1]} 17. Qb3 {[%clk 0:02:31.7]} 17... Nd4+ {[%clk 0:02:59.9]} 18. Ke3 {[%clk 0:02:26.4]} 18... Nxb3 {[%clk 0:02:58.3]} 0-1